Cogmind - Beta 16 @@@ ROGUE MODE // 2025.12.27 @ 21:26:42 Player: Bity Result: Destroyed by G-47 Trooper with Particle Gun Performance ------------- Evolutions (2) 1000 Regions Visited (4) 800 Robots Destroyed (31) 155 Value Destroyed (833) 833 Prototype IDs (1) 20 Alien Tech Used (0) 0 Bonus (0) 0 TOTAL SCORE: 2808 Bonus ------- None Cogmind --------- Core Integrity 0/550 Matter 240/300 Energy 100/100 System Corruption 2% Temperature Cool (43) Movement Treading (320) Ox2 Location -8/Storage Parts ------- > --- POWER (1) -------- Backup Power I > --- PROPULSION (2) --- Light Treads Backup Propulsion I > --- UTILITY (6) ------ High-capacity Storage Unit Visual Processing Unit Visual Processing Unit Backup Plating I Hardened Light Armor Plating > --- WEAPON (2) ------- Backup Laser I Backup Laser I > --- INVENTORY (20) --- Light Humpback Peak State ------------ > --- POWER ------------ Light Nuclear Core > --- PROPULSION ------- Aerolev Unit Aerolev Unit > --- UTILITY ---------- High-capacity Storage Unit > --- WEAPON ----------- Particle Gun Light Cannon > --- INVENTORY -------- Light Ion Engine Light Treads Titanium Leg Hover Unit Aerolev Unit Disposable Heat Sink High-capacity Storage Unit Light Humpback Visual Processing Unit Hardened Light Armor Plating [Rating: 16] Favorites ----------- Power Ion Engine Engine Ion Engine Power Core Light Nuclear Core Propulsion Light Treads Treads Light Treads Leg Aluminum Leg Wheel Wheel Hover Unit Aerolev Unit Flight Unit Cesium-ion Thruster Utility High-capacity Storage Unit Device Seismic Detector Storage High-capacity Storage Unit Processor Visual Processing Unit Protection Backup Plating I Weapon Light Assault Rifle Energy Gun EM Pulse Gun Ballistic Gun Light Assault Rifle Ballistic Cannon Light Cannon Launcher Grenade Launcher Build | -11 -10 -10 -8 -8 ------- Run | Yrd Mat Sub Mat Sto Slots Evolved 4 | . . . 4 . Power . | . . . . . Propulsion . | . . . . . Utility 4 | . . . 4 . Weapon . | . . . . . Parts Attached 33 | 4 4 4 19 2 Power 4 | . . . 4 . Engine 3 | . . . 3 . Core 1 | . . . 1 . Reactor . | . . . . . Propulsion 14 | 2 2 2 8 . Treads 4 | 2 . . 2 . Leg . | . . . . . Wheel 5 | . 2 2 1 . Hover 4 | . . . 4 . Flight 1 | . . . 1 . Utility 8 | 1 2 1 2 2 Device 3 | 1 . 1 1 . Storage 2 | . 2 . . . Processor 2 | . . . 1 1 Hackware . | . . . . . Protection 1 | . . . . 1 Artifact . | . . . . . Weapon 7 | 1 . 1 5 . Energy Gun 3 | . . 1 2 . Energy Cannon . | . . . . . Ballistic Gun 2 | 1 . . 1 . Ballistic Cannon 1 | . . . 1 . Launcher 1 | . . . 1 . Special Weapon . | . . . . . Impact Weapon . | . . . . . Slashing Weapon . | . . . . . Piercing Weapon . | . . . . . Special Melee Weapon . | . . . . . Unidentified Prototypes 1 | . . . 1 . Parts Lost 28 | . 2 6 20 . Power 4 | . . 1 3 . Propulsion 13 | . . 3 10 . Utility 3 | . 1 . 2 . Weapon 8 | . 1 2 5 . Highest Loss Streak 7 | . 2 6 7 . To Critical Strikes 1 | . . . 1 . Average Backups 9 | 6 10 12 8 2 Power 1 | 1 1 2 . . Propulsion 4 | 4 5 6 3 . Utility 3 | . 2 3 4 2 Weapon . | 1 1 . . . Tool/Special . | . . . . . Unused Backups 5 | . 2 . 2 1 Power . | . . . . . Propulsion 1 | . . . 1 . Utility 4 | . 2 . 1 1 Weapon . | . . . . . Tool/Special . | . . . . . Average Slot Usage (%) 74 | . 99 94 40 49 Engine 9 | . 14 13 2 5 Treads 11 | . 27 . 2 7 Wheel 7 | . . 26 4 . Hover 2 | . . . 6 5 Device 9 | . 13 13 6 . Storage 10 | . 14 14 8 1 Processor 1 | . . . 1 11 Energy Gun 4 | . . 12 2 11 Ballistic Gun 13 | . 27 12 1 . Peak Build Rating 16 | 7 8 9 16 13 Average Rating 8 | 6 7 8 9 7 On Entrance 5 | 6 7 6 6 2 Avg Prop Armor Cover (%) 20 | . . . . 20 Naked Turns . | . . . . . Heaviest Build 49 | 14 49 48 49 4 Greatest Support 42 | 40 40 32 42 20 Greatest Overweight (x) 7 | . 4 4 7 . Average Overweight (x) 1 | . . 1 1 . Largest Inventory Capacity 20 | 8 20 20 20 20 Average Capacity 17 | 8 18 20 18 6 Most Carried 14 | 8 13 14 12 4 Average Carried 10 | 6 10 13 9 3 Final Capacity 20 | 8 20 20 5 20 Final Carried 13 | 7 13 11 5 2 Class Distribution -------------------- 100% | Mutant Dominant Class ---------------- Mutant | -10/Materials Mutant | -10/Subcaves Mutant | -8/Materials Mutant | -8/Storage Resources | -11 -10 -10 -8 -8 ----------- Run | Yrd Mat Sub Mat Sto Matter Collected 955 | 275 197 51 432 . Remotely . | . . . . . Salvage Created 1061 | 100 289 105 529 38 Parts 47 | 7 17 2 20 1 Haulers Intercepted 2 | . 1 . 1 . Recyclers Shooed 2 | 1 . . 1 . Parts Field Recycled . | . . . . . Retrieved Matter . | . . . . . Parts Self-Destructed 9 | . . 9 . . Prevented . | . . . . . Parts Restored . | . . . . . Kills | -11 -10 -10 -8 -8 ------- Run | Yrd Mat Sub Mat Sto Combat Hostiles Destroyed 18 | . 5 2 11 . Guns 11 | . 5 2 4 . Cannons 3 | . . . 3 . AOE 4 | . . . 4 . Classes Destroyed 10 | 2 3 1 4 . Worker 1 | . . . 1 . Builder 1 | . . . 1 . Tunneler 3 | 3 . . . . Hauler 2 | . 1 . 1 . Recycler 3 | 1 . . 2 . Watcher 3 | . 2 . . 1 Swarmer 2 | . . . 2 . Grunt 11 | . 5 1 5 . Sentry 4 | . . 1 3 . Hunter 1 | . . . 1 . Best Kill Streak 5 | 3 3 2 5 1 Combat Bots Only 3 | . 3 2 2 . Max Kills in Single Turn 2 | 1 2 1 2 1 Gunslinging 1 | . 1 . . . Exploded 1 | . . . 1 . Melee . | . . . . . Uniques/NPCs Destroyed . | . . . . . Combat | -11 -10 -10 -8 -8 -------- Run | Yrd Mat Sub Mat Sto Hostile Shots Fired 295 | . 60 31 192 12 Missed 73 | . 13 7 50 3 Hits 222 | . 47 24 142 9 Projectile 222 | . 47 24 142 9 Critical Strikes 6 | . 1 . 5 . Damage Taken 3239 | . 618 457 2007 157 Core 781 | . 115 105 507 54 Absorbed by Shields . | . . . . . Regen/Repaired (Parts) 95 | . . . . 95 Core Remaining (%) 56 | 100 . 12 . . Volleys Fired 147 | 13 44 9 70 11 Largest 2 | 2 2 2 2 2 Hottest 95 | 40 40 60 95 60 Shots Fired 240 | 26 87 18 87 22 Gun 206 | 26 87 18 53 22 Cannon 16 | . . . 16 . Launcher 18 | . . . 18 . Special . | . . . . . Kinetic 154 | 26 87 9 32 . Thermal 59 | . . . 37 22 Explosive 18 | . . . 18 . Electromagnetic 9 | . . 9 . . Robot Hit Streak 8 | 3 6 4 8 5 Robot Miss Streak 5 | 2 3 2 5 1 Penetration Max . | . . . . . Secondary Targets 2 | . 1 1 . . Max Gunslinging Chain 1 | . 1 1 . . Shots Hit Robots 136 | 13 51 7 53 12 Core Hits 71 | 5 22 4 35 5 Critical Kills 2 | . 1 1 . . Critical Parts Destroyed . | . . . . . Critical Strikes 2 | . 1 1 . . Destroy 2 | . 1 1 . . Melee Attacks . | . . . . . Impact . | . . . . . Slashing . | . . . . . Piercing . | . . . . . Sneak Attacks . | . . . . . Combat Hostiles . | . . . . . Follow-up Attacks . | . . . . . Damage Inflicted 2262 | 146 545 74 1386 111 Guns 1353 | 146 545 74 480 108 Cannons 221 | . . . 221 . Explosions 685 | . . . 685 . Melee . | . . . . . Ramming 3 | . . . . 3 Kinetic 1021 | 146 545 39 291 . Thermal 612 | . . . 504 108 Explosive 591 | . . . 591 . Electromagnetic 35 | . . 35 . . Impact . | . . . . . Slashing . | . . . . . Piercing . | . . . . . Highest Corruption 2 | . . . . 2 Average Corruption 2 | . . . . 2 Corruption Purged . | . . . . . Corruption Blocked . | . . . . . Effects 2 | . . . . 2 Message Errors 2 | . . . . 2 Overload Shots . | . . . . . Overflow Damage 1 | . . . 1 . Projectiles . | . . . . . Explosions 1 | . . . 1 . Melee . | . . . . . Knockbacks 3 | . . . 3 . Impact . | . . . . . Kinetic 2 | . . . 2 . Secondary 1 | . . . 1 . Self-Inflicted Damage 46 | . . . 43 3 Shots 4 | . . . 4 . Rammed . | . . . . . Targets Rammed . | . . . . . Kicked . | . . . . . Crushed . | . . . . . Highest Temperature 287 | . 37 . 287 36 Average Temperature 62 | . 13 . 82 18 Received Heat Transfer 1263 | . 363 153 666 81 Effects 1 | . . . 1 . Interference 1 | . . . 1 . Siege Activations . | . . . . . Martial Activations . | . . . . . Shielding Activations . | . . . . . Robots Disrupted . | . . . . . Combat Hostiles . | . . . . . Robots Corrupted . | . . . . . Combat Hostiles . | . . . . . Parts Fried . | . . . . . Impact Corruptions . | . . . . . Robots Melted . | . . . . . Combat Hostiles . | . . . . . Parts Melted . | . . . . . Heat Transferred 1419 | . . . 975 444 Parts Sabotaged . | . . . . . Parts Stolen . | . . . . . Parts Stripped . | . . . . . Power Chain Reactions . | . . . . . Alert | -11 -10 -10 -8 -8 ------- Run | Yrd Mat Sub Mat Sto Maximum Alert Level 1 | . . . 1 . Low Security (%) 97 | 100 100 . 93 100 Level 1 2 | . . . 6 . Level 2 . | . . . . . Level 3 . | . . . . . Level 4 . | . . . . . Level 5 . | . . . . . High Security . | . . . . . Max Security . | . . . . . Peak Influence 219 | 10 100 . 219 51 Initial 51 | . . . . 51 Average 61 | 1 20 . 133 24 Influence Increases 751 | 20 141 40 534 16 Destroy 0b10 Robot/C 360 | . 100 40 220 . Destroy 0b10 Robot/NC 65 | 20 15 . 25 5 Destroy Leader 100 | . 26 . 72 2 Successful Hack 22 | . . . 13 9 Disable Machine 30 | . . . 30 . Destroy Structure 84 | . . . 84 . Partial Spotted 15 | . . . 15 . Lose Combat Pursuer 75 | . . . 75 . Influence Decreases 751 | 20 141 40 412 138 Entered New Map 71 | . . . . 71 Time Decay 462 | 20 141 10 224 67 Lost Part 218 | . . 30 188 . Squads Dispatched 3 | . 1 . 2 . Investigation . | . . . . . Extermination . | . . . . . Reinforcement 3 | . 1 . 2 . Assault . | . . . . . Garrison . | . . . . . Intercept . | . . . . . Searches Triggered . | . . . . . Construction Impeded 1 | . . . 1 . Haulers Reinforced . | . . . . . Active Scanning Responses . | . . . . . Cargo Convoy Interrupts . | . . . . . Stealth | -11 -10 -10 -8 -8 --------- Run | Yrd Mat Sub Mat Sto Distress Signals 3 | . . . 2 1 Communications Jammed . | . . . . . Distress Signals . | . . . . . Times Spotted 48 | . 15 4 26 3 Peak Tracking Total 6 | . 5 2 6 3 Tactical Retreats 5 | . . . 5 . Traps | -11 -10 -10 -8 -8 ------- Run | Yrd Mat Sub Mat Sto Traps Triggered . | . . . . . Indirectly . | . . . . . Trap Hack Attempts . | . . . . . Triggered . | . . . . . Disarmed . | . . . . . Reprogrammed . | . . . . . Reused . | . . . . . Traps Extracted . | . . . . . Installed . | . . . . . Triggered . | . . . . . Machines | -11 -10 -10 -8 -8 ---------- Run | Yrd Mat Sub Mat Sto Machines Disabled 2 | . . . 2 . Max in Single Turn 2 | . . . 2 . Machines Repaired . | . . . . . Machines Dismantled . | . . . . . Machines Sabotaged . | . . . . . Overloaded Fab Kills . | . . . . . Hacking | -11 -10 -10 -8 -8 --------- Run | Yrd Mat Sub Mat Sto Machines Accessed 5 | . 2 . 2 1 Terminals 3 | . 1 . 2 . Fabricators . | . . . . . Repair Stations 1 | . . . . 1 Recycling Units 1 | . 1 . . . Scanalyzers . | . . . . . Garrison Access . | . . . . . Total Hacks 17 | . 7 . 6 4 Successful 11 | . 4 . 4 3 Failed 6 | . 3 . 2 1 Catastrophic . | . . . . . Database Lockouts . | . . . . . Manual 8 | . 3 . 5 . Terminals 11 | . 5 . 6 . Fabricators . | . . . . . Repair Stations 4 | . . . . 4 Recycling Units 2 | . 2 . . . Scanalyzers . | . . . . . Garrison Access . | . . . . . Terminal Hacks 3 | . 2 . 1 . Emergency Access Points 1 | . . . 1 . Alert Level 1 | . 1 . . . Zone Layout 1 | . 1 . . . Fabricator Hacks . | . . . . . Repair Station Hacks 3 | . . . . 3 Scan Component 1 | . . . . 1 Repair 1 | . . . . 1 Refit 1 | . . . . 1 Recycling Unit Hacks 2 | . 2 . . . Report Inventory 1 | . 1 . . . Retrieve Components 1 | . 1 . . . Scanalyzer . | . . . . . Garrison Access Hacks . | . . . . . Unauthorized Hacks 3 | . . . 3 . Terminals 3 | . . . 3 . Botnet 2 | . . . 2 . Operators 1 | . . . 1 . Fabricators . | . . . . . Repair Stations . | . . . . . Recycling Units . | . . . . . Scanalyzers . | . . . . . Garrison Access . | . . . . . Data Cores Recovered . | . . . . . Used . | . . . . . Hacking Detections 2 | . 1 . 1 . Full Trace Events 2 | . 1 . 1 . Feedback Events . | . . . . . Feedback Blocked . | . . . . . Robot Schematics Acquired . | . . . . . Robots Built . | . . . . . Authchips . | . . . . . Time . | . . . . . Total Robot Build Rating . | . . . . . Part Schematics Acquired . | . . . . . Parts Built . | . . . . . Authchips . | . . . . . Time . | . . . . . Total Part Build Rating . | . . . . . Part Studies Acquired . | . . . . . Parts Repaired 1 | . . . . 1 Time 26 | . . . . 26 Parts Recycled . | . . . . . Recycled Matter . | . . . . . Retrieved Matter . | . . . . . Retrieved Components 2 | . 2 . . . Parts Scanalyzed . | . . . . . Part Schematics Acquired . | . . . . . Parts Damaged . | . . . . . Bothacking | -11 -10 -10 -8 -8 ------------ Run | Yrd Mat Sub Mat Sto Used RIF Installer . | . . . . . Robots Hacked . | . . . . . Non-combat . | . . . . . Combat . | . . . . . Robot Hacks Applied . | . . . . . Relay Couplers Released . | . . . . . Fabnet Peak Effective % . | . . . . . Robots Rewired . | . . . . . Allies Hacked . | . . . . . Hacks Repelled . | . . . . . Allies | -11 -10 -10 -8 -8 -------- Run | Yrd Mat Sub Mat Sto Total Allies . | . . . . . Largest Group . | . . . . . Highest-Rated Group . | . . . . . Highest-Rated Ally . | . . . . . Total Orders . | . . . . . Ally Attacks . | . . . . . Total Damage . | . . . . . Kills . | . . . . . Allies Corrupted . | . . . . . Allies Melted . | . . . . . Intel | -11 -10 -10 -8 -8 ------- Run | Yrd Mat Sub Mat Sto Active Infowar (turns) 878 | 81 622 . 121 54 Optics 175 | . . . 121 54 Seismic 703 | 81 622 . . . Robot Analysis Total . | . . . . . Derelict Logs Recovered . | . . . . . Drone Launches . | . . . . . Drone Recoveries . | . . . . . Exploration | -11 -10 -10 -8 -8 ------------- Run | Yrd Mat Sub Mat Sto Turns Passed 1793 | 110 636 341 545 161 Spaces Moved 813 | 43 209 189 294 78 Core 25 | . . 1 10 14 Treads 243 | 13 191 6 9 24 Legs 30 | 30 . . . . Wheels 293 | . 18 182 93 . Hover 113 | . . . 73 40 Flight 109 | . . . 109 . Fastest Speed 35 | 120 110 95 35 50 Average Speed 137 | 132 216 101 112 109 Slowest Speed 595 | 160 240 250 595 160 Overloaded Moves . | . . . . . Propulsion Burnouts . | . . . . . Robots Hopped . | . . . . . Potential Cave-ins . | . . . . . Cave-ins Triggered . | . . . . . Exploration Rate (%) 17 | 3 26 17 28 12 Regions Visited 4 Branch Regions 2 Pre-discovered Areas . | . . . . . Known Exits Taken . | . . . . . Unknown Exits Taken 4 | 1 1 1 1 . Scrap Searched . | . . . . . Spaces Dug . | . . . . . Terrain Destroyed 118 | . . . 118 . Melee . | . . . . . Projectile . | . . . . . AOE 118 | . . . 118 . Terrain Rammed 1 | . . . . 1 Walls Destroyed . | . . . . . Machines Disabled . | . . . . . Actions | -11 -10 -10 -8 -8 --------- Run | Yrd Mat Sub Mat Sto Total 1256 | 74 312 321 418 131 Wait 233 | 8 50 117 24 34 Move 809 | 42 208 188 293 78 Hop . | . . . . . Pick Up 17 | 4 5 2 6 . Fast Attach 9 | 1 . . 6 2 Attach 21 | . . 5 12 4 Detach 1 | . . . . 1 Swap 13 | 3 4 . 6 . Drop 5 | 3 1 . 1 . Fire 147 | 13 44 9 70 11 Melee . | . . . . . Ram 1 | . . . . 1 Kick . | . . . . . Crush . | . . . . . Escape Stasis . | . . . . . Rewire . | . . . . . Trap . | . . . . . Miscellaneous . | . . . . . Route ------- -11/Scrapyard -10/Materials (discovered 2 exits: [*Min] / [*Sub]) -10/Subcaves -8/Materials (discovered 2 exits: [*Fac] / *Sto) -8/Storage History --------- Turn | Location | Event 1 | -11/Scrapyard | Discovered new exit (range 2) 111 | -11/Scrapyard | Entered Materials 265 | -10/Materials | Discovered new exit (range 11) 314 | -10/Materials | Build established: Mutant 570 | -10/Materials | Discovered new exit (range 10) 747 | -10/Materials | Entered Subcaves 748 | -10/Subcaves | Approached by a straggling Scientist 804 | -10/Subcaves | Shifting Twisted Machinery released Spk. Treads 806 | -10/Subcaves | Shifting Twisted Machinery released Lgt. Humpback 971 | -10/Subcaves | Shifting Twisted Machinery released Mak. Kinetic Plating 980 | -10/Subcaves | Shifting Twisted Machinery released Sub. Monowheel 1030 | -10/Subcaves | Core integrity fell below 50% 1050 | -10/Subcaves | Discovered new exit (range 7) 1053 | -10/Subcaves | Ambushed by Subdwellers from Twisted Machinery 1086 | -10/Subcaves | Core integrity fell below 20% 1088 | -10/Subcaves | Entered Materials 1088 | -8/Materials | Evolved 4 slots: Utility x4 1106 | -8/Materials | Lost 6 parts (1p3n2w) 1372 | -8/Materials | Lost 7 parts (3n2u2w) 1447 | -8/Materials | Core integrity fell below 50% 1486 | -8/Materials | Lost 3 parts (1p1n1w) 1586 | -8/Materials | Core integrity fell below 20% 1621 | -8/Materials | Discovered new exit (range 13) 1622 | -8/Materials | Discovered new exit (range 16) 1633 | -8/Materials | Entered Storage 1710 | -8/Storage | Repaired Lgt. Treads 1794 | -8/Storage | Destroyed by G-47 Trooper with Particle Gun Last Messages --------------- Backup Laser I x2 01684_ Connecting with Repair Station... >>Scan(Lgt. Treads) Scanning Lgt. Treads... Ready to Repair: Lgt. Treads Rating: 1 Time: 26 >>Repair Repairing Lgt. Treads... ETC: 26 01686_ 7/VZRZTUF|QSWFLFF1>=LCANZW=NIL&RI 01710_ Repair station completes Lgt. Treads repairs. 01710_ Acquired Lgt. Treads. 01739_ K-01 Serf collects debris. 01745_ W-25 Informer destroyed. 01750_ Acquired Visual Processing Unit. 01768_ Storage Shell breached. 01792_ Transfer Shaft disabled. Map ----- +----------------------------------------------------+ | ??????????????????????????????? | | ??????????????????????????????? | | ??????????????????????????????? | | ??????????????????????????????? | | ??????????????????????????????? | | ??????????????????????????????? | | ??????????????????????????????? | | ??????????????????????????????? | | ??????????????????????????????? | | ??????????????????????????????? | | ??????????????????????????????? | | ??????????????????????????????? | | ??????????????????????????????? | | ??????????????????????????????? | | ??????????????????????????????? | | ??????????????????????????????? | | ??????????????????????????????? | | ??????????????????????????????? | | ??????????????????????????????? | | ???????????????? ???????????? | | ???????????????? ##########?? | | ???????????????# # [! #?? | | ???????????????# # [! #?? | | ???????????????# # #?? | | ???????????????# # g #?? | | ???????????????+ + g@ #?? | | ???????????????# #"" " " #?? | | ???????????????# #"Y """ #?? | | ???????????????# #"" """ #?? | | ???????????????# # #?? | | ???????????????# ####+#####?? | | ???????????????# # #?? | | ???????????????# # """" #?? | | ???????????????# # "??" #?? | | ???????????????# # "?? #?? | | ???????????????+ + "??" #?? | | ???????????????# # "??" #?? | | ???????????????# # """" #?? | | ???????????????# # % #?? | | ???????????????# # #?? | | ???????????????# ####/#####?? | | ???????????????#####??# #?????? | | ??##################### #?????? | | ####??? | | #??? | | ???###########+### #??? | | ???????#### # #??? | | ???????#""" """ # #??? | | ???????#"R """ + ########??? | | ???????#""" """ ####?????????? | +----------------------------------------------------+ Best States ------------- Heat Dissipation 53 Energy Generation 14 Energy Capacity 250 Matter Stores 300 Matter Capacity 300 Sight Range 18 Terrain Scan Density 10 Additional Mass Support 6 Armor Coverage 230 Evasion (%) 63 Recoil Reduction 2 Item Schematics ----------------- None Robot Schematics ------------------ None Fabricated ------------ Nothing Repaired ---------- Lgt. Treads | 32% | -8/Storage Studied --------- None Alien Tech Used ----------------- None Achievements -------------- None Challenges ------------ None Game ------ Seed PhasingSuspensionDiverter Manual? 0 Play Time 00:18:24 Cumulative 37.5 hours Start 2025.12.27 @ 21:09:19 End 2025.12.27 @ 21:26:42 Sessions 1 Manual Loads 0 Difficulty Rogue Special Mode None Game No. 46 Rogue 46 Adventurer 0 Explorer 0 Win Type - Total 1 Types 1/0/0/0/0/0/0/0/0/0 Lore% 27 Gallery% 40 Achievement% 31 Wizard Run 0 Options --------- Layout 2 ASCII 0 Keyboard 1 Movement Numpad Keybinds 0 Fullscreen 1 Font 24/Smallcaps Map View 50x44 Zoom Use 0% Tactical HUD 1 Map Filters NONE Filters NONE Steam 1 RUN: de2c4b31-de11-4544-9b42-b6f16d867810